fUST/lending_fUST_20250402
["ID","MTS","AMOUNT","RATE_DAILY","PERIOD"]
[357003616,1743567046462,-500.0,0.00020679,2]
[357003617,1743567046471,-500.0,0.00020679,2]
[357003618,1743567046481,-500.0,0.00020679,2]
[357003619,1743567046490,-551.59362891,0.00020679,2]
[357003620,1743567046500,-500.0,0.00020679,2]
[357003621,1743567046509,-500.0,0.00020679,2]
[357003622,1743567046518,-508.76477283,0.00020679,2]
[357003623,1743567046528,-576.4,0.00020679,2]
[357003624,1743567046537,-500.0,0.00020679,2]
[357003625,1743567046547,-500.0,0.00020679,2]
[357003626,1743567046557,-561.37580221,0.00020679,2]
[357003627,1743567046567,-500.0,0.00020679,2]
[357003628,1743567046577,-500.0,0.00020679,2]
[357003629,1743567046586,-500.0,0.00020679,2]
[357003630,1743567046595,-500.0,0.00020679,2]
[357003631,1743567046605,-500.0,0.0002068,2]
[357003632,1743567046614,-500.0,0.00020684,2]
[357003633,1743567046623,-152.22,0.00020684,2]
[357003634,1743567046633,-500.0,0.00020685,2]
[357003635,1743567046642,-1009.56981522,0.00020687,2]
[357003636,1743567046652,-500.0,0.00020687,2]
[357003637,1743567046662,-508.0514194,0.00020687,2]
[357003638,1743567046671,-500.0,0.00020687,2]
[357003639,1743567046680,-505.91692739,0.00020687,2]
[357003640,1743567046689,-500.0,0.00020687,2]
[357003641,1743567046699,-507.31105146,0.00020687,2]
[357003642,1743567046711,-500.0,0.00020687,2]
[357003643,1743567046724,-500.0,0.00020687,2]
[357003644,1743567046733,-500.0,0.00020687,2]
[357003645,1743567046742,-507.64369227,0.00020687,2]
[357003646,1743567046751,-516.32851791,0.00020687,2]
[357003647,1743567046761,-500.0,0.00020687,2]
[357003648,1743567046770,-500.0,0.00020687,2]
[357003649,1743567046779,-500.0,0.00020687,2]
[357003650,1743567046789,-500.0,0.00020687,2]
[357003651,1743567046799,-506.62001053,0.00020687,2]
[357003652,1743567046808,-500.0,0.00020687,2]
[357003653,1743567046817,-541.80864181,0.00020687,2]
[357003654,1743567046826,-500.0,0.00020687,2]
[357003655,1743567046835,-500.0,0.00020687,2]
[357003656,1743567046844,-500.0,0.00020687,2]
[357003657,1743567046854,-500.0,0.00020687,2]
[357003658,1743567046863,-509.45608589,0.00020687,2]
[357003659,1743567046872,-500.0,0.00020687,2]
[357003660,1743567046881,-500.0,0.00020687,2]
[357003661,1743567046891,-500.0,0.00020687,2]
[357003662,1743567046900,-500.0,0.00020687,2]
[357003663,1743567046909,-500.0,0.00020687,2]
[357003664,1743567046919,-515.30825057,0.00020687,2]
[357003665,1743567046928,-500.0,0.00020687,2]
[357003666,1743567046937,-500.0,0.00020687,2]
[357003667,1743567046946,-500.0,0.00020687,2]
[357003668,1743567046956,-500.0,0.00020687,2]
[357003669,1743567046965,-500.0,0.00020687,2]
[357003670,1743567046974,-500.0,0.00020687,2]
[357003671,1743567046984,-500.0,0.00020687,2]
[357003672,1743567046993,-500.0,0.00020687,2]
[357003673,1743567047003,-518.15256671,0.00020687,2]
[357003674,1743567047012,-500.0,0.00020687,2]
[357003675,1743567047021,-500.0,0.00020687,2]
[357003676,1743567047031,-506.40788011,0.00020687,2]
[357003677,1743567047040,-555.89984882,0.00020687,2]
[357003678,1743567047050,-500.0,0.00020687,2]
[357003679,1743567047059,-500.0,0.00020687,2]
[357003680,1743567047068,-500.0,0.00020687,2]
[357003681,1743567047078,-500.0,0.00020687,2]
[357003682,1743567047087,-570.45244016,0.00020687,2]
[357003683,1743567047096,-500.0,0.00020687,2]
[357003684,1743567047106,-500.0,0.00020687,2]
[357003685,1743567047116,-500.0,0.00020687,2]
[357003686,1743567047126,-500.0,0.00020687,2]
[357003687,1743567047135,-500.0,0.00020687,2]
[357003688,1743567047144,-500.0,0.00020687,2]
[357003689,1743567047154,-500.0,0.00020687,2]
[357003690,1743567047163,-500.0,0.00020687,2]
[357003691,1743567047172,-500.0,0.00020687,2]
[357003692,1743567047181,-500.0,0.00020687,2]
[357003693,1743567047190,-500.0,0.00020687,2]
[357003694,1743567047199,-500.0,0.00020687,2]
[357003695,1743567047209,-500.0,0.00020687,2]
[357003696,1743567047218,-500.0,0.00020687,2]
[357003697,1743567047228,-188.940816,0.00020687,2]
[357003698,1743567047237,-188.940816,0.00020687,2]
[357003699,1743567047247,-151.0,0.00020687,2]
[357003700,1743567047256,-208.111135,0.00020687,2]
[357003701,1743567047265,-208.111135,0.00020687,2]
[357003702,1743567047275,-151.0,0.00020687,2]
[357003703,1743567047285,-151.0,0.00020687,2]
[357003704,1743567047294,-189.716224,0.00020687,2]
[357003705,1743567047303,-500.0,0.00020688,2]
[357003706,1743567047313,-500.0,0.00020688,2]
[357003707,1743567047322,-500.0,0.00020688,2]
[357003708,1743567047332,-500.0,0.00020688,2]
[357003709,1743567047341,-500.0,0.00020689,2]
[357003710,1743567047351,-500.0,0.0002069,2]
[357003711,1743567047360,-500.0,0.00020691,2]
[357003712,1743567047369,-500.0,0.00020691,2]
[357003713,1743567047379,-500.0,0.00020691,2]
[357003714,1743567047388,-555.57540525,0.00020691,2]
[357003715,1743567047397,-300.0,0.00020738,2]
[357003716,1743567047407,-382.0753084,0.00020854,2]
[357003717,1743567047416,-25373.23391226,0.000209,2]
[357003721,1743567219444,158.70166863,0.00025,30]
[357003807,1743568232026,-836.00498798,0.00020517,2]
[357003808,1743568232036,-419.02799708,0.00020521,2]
[357003809,1743568232046,-369.48,0.0002066,3]
[357003810,1743568232056,-300.0,0.00020667,2]
[357003811,1743568232066,-500.0,0.00020667,2]
[357003812,1743568232076,-500.0,0.00020667,2]
[357003813,1743568232088,-500.0,0.00020667,2]
[357003814,1743568232098,-248.07248105,0.00020667,2]
[357003815,1743568232109,-500.0,0.00020667,2]
[357003816,1743568232118,-12261.9,0.00020668,2]
[357003817,1743568232129,-525.16,0.00020668,2]
[357003818,1743568232139,-500.0,0.00020668,2]
[357003819,1743568232148,-1088.29,0.00020668,2]
[357003820,1743568232159,-500.0,0.00020668,2]
[357003821,1743568232169,-500.0,0.00020668,2]
[357003822,1743568232179,-500.0,0.00020668,2]
[357003823,1743568232189,-500.0,0.00020668,2]
[357003824,1743568232198,-938.89,0.00020668,2]
[357003825,1743568232207,-500.0,0.00020668,2]
[357003826,1743568232217,-500.0,0.00020668,2]
[357003827,1743568232227,-500.0,0.00020668,2]
[357003828,1743568232236,-500.0,0.00020668,2]
[357003829,1743568232245,-5500.2,0.00020668,2]
[357003830,1743568232255,-500.0,0.00020668,2]
[357003831,1743568232264,-523.77,0.00020668,2]
[357003832,1743568232274,-500.0,0.00020668,2]
[357003833,1743568232284,-500.0,0.00020668,2]
[357003834,1743568232295,-500.0,0.00020669,2]
[357003835,1743568232304,-500.0,0.00020669,2]
[357003836,1743568232314,-500.0,0.00020669,2]
[357003837,1743568232324,-500.0,0.00020669,2]
[357003838,1743568232335,-680.29,0.00020669,2]
[357003839,1743568232347,-625.82,0.00020669,2]
[357003840,1743568232357,-698.88,0.00020669,2]
[357003841,1743568232366,-500.0,0.00020669,2]
[357003842,1743568232376,-392.94348101,0.00020669,2]
[357003843,1743568232385,-500.0,0.00020669,2]
[357003844,1743568232395,-500.0,0.00020669,2]
[357003845,1743568232404,-500.0,0.00020669,2]
[357003846,1743568232414,-500.0,0.00020669,2]
[357003847,1743568232423,-500.0,0.00020669,2]
[357003848,1743568232433,-500.0,0.00020669,2]
[357003849,1743568232442,-500.0,0.00020669,2]
[357003850,1743568232451,-500.0,0.00020669,2]
[357003851,1743568232462,-500.0,0.00020669,2]
[357003852,1743568232476,-500.0,0.00020669,2]
[357003853,1743568232485,-500.0,0.00020669,2]
[357003854,1743568232496,-500.0,0.00020669,2]
[357003855,1743568232505,-500.0,0.00020669,2]
[357003856,1743568232515,-500.0,0.00020669,2]
[357003857,1743568232524,-500.0,0.00020669,2]
[357003858,1743568232533,-500.0,0.00020669,2]
[357003859,1743568232543,-500.0,0.00020669,2]
[357003860,1743568232552,-1233.94,0.00020669,2]
[357003861,1743568232562,-500.0,0.00020669,2]
[357003862,1743568232571,-561.85,0.00020669,2]
[357003863,1743568232580,-500.0,0.00020669,2]
[357003864,1743568232589,-500.0,0.00020669,2]
[357003865,1743568232599,-209.19,0.00020669,2]
[357003866,1743568232608,-3595.08,0.00020669,2]
[357003867,1743568232617,-355.39,0.00020669,2]
[357003868,1743568232626,-500.0,0.00020669,2]
[357003869,1743568232635,-500.0,0.00020669,2]
[357003870,1743568232645,-500.0,0.00020669,2]
[357003871,1743568232654,-408.01906667,0.00020669,2]
[357003872,1743568232663,-500.0,0.0002067,2]
[357003873,1743568232673,-500.0,0.0002067,2]
[357003874,1743568232683,-500.0,0.0002067,2]
[357003875,1743568232693,-500.0,0.0002067,2]
[357003876,1743568232703,-500.0,0.0002067,2]
[357003877,1743568232712,-500.0,0.0002067,2]
[357003878,1743568232724,-158.56877859,0.0002067,2]
[357003879,1743568232734,-500.0,0.0002067,2]
[357003880,1743568232744,-500.0,0.0002067,2]
[357003881,1743568232754,-500.0,0.0002067,2]
[357003882,1743568232764,-255.97269917,0.0002067,2]
[357003883,1743568232773,-500.0,0.0002067,2]
[357003884,1743568232783,-364.78320232,0.0002067,2]
[357003885,1743568232793,-500.0,0.0002067,2]
[357003886,1743568232803,-500.0,0.0002067,2]
[357003887,1743568232812,-500.0,0.0002067,2]
[357003888,1743568232822,-500.0,0.0002067,2]
[357003889,1743568232831,-500.0,0.0002067,2]
[357003890,1743568232841,-500.0,0.0002067,2]
[357003891,1743568232850,-500.0,0.0002067,2]
[357003892,1743568232860,-500.0,0.0002067,2]
[357003893,1743568232869,-500.0,0.0002067,2]
[357003894,1743568232878,-500.0,0.0002067,2]
[357003895,1743568232888,-514.89793425,0.0002067,2]
[357003896,1743568232897,-500.0,0.0002067,2]
[357003897,1743568232907,-179.23090927,0.0002067,2]
[357003898,1743568232917,-500.0,0.0002067,2]
[357003899,1743568232926,-500.0,0.0002067,2]
[357003900,1743568232935,-500.0,0.0002067,2]
[357003901,1743568232945,-500.0,0.0002067,2]
[357003902,1743568232957,-500.0,0.0002067,2]
[357003903,1743568232967,-500.0,0.0002067,2]
[357003904,1743568232976,-500.0,0.0002067,2]
[357003905,1743568232985,-500.0,0.0002067,2]
[357003906,1743568232995,-500.0,0.0002067,2]
[357003907,1743568233004,-500.0,0.0002067,2]
[357003908,1743568233013,-500.0,0.0002067,2]
[357003909,1743568233022,-500.0,0.0002067,2]
[357003910,1743568233032,-155.06566781,0.0002067,2]
[357003911,1743568233042,-500.0,0.0002067,2]
[357003912,1743568233052,-500.0,0.0002067,2]
[357003913,1743568233062,-500.0,0.0002067,2]
[357003914,1743568233071,-582.984004,0.0002067,2]
[357003915,1743568233081,-500.0,0.0002067,2]
[357003916,1743568233091,-500.0,0.0002067,2]
[357003917,1743568233102,-500.0,0.0002067,2]
[357003918,1743568233111,-507.53218851,0.0002067,2]
[357003919,1743568233121,-500.0,0.0002067,2]
[357003920,1743568233130,-500.0,0.0002067,2]
[357003921,1743568233141,-500.0,0.0002067,2]
[357003922,1743568233151,-500.0,0.0002067,2]
[357003923,1743568233160,-500.0,0.0002067,2]
[357003924,1743568233172,-500.0,0.0002067,2]
[357003925,1743568233183,-500.0,0.0002067,2]
[357003926,1743568233192,-500.0,0.0002067,2]
[357003927,1743568233201,-500.0,0.0002067,2]
[357003928,1743568233210,-478.27659908,0.0002067,2]
[357003929,1743568233219,-500.0,0.0002067,2]
[357003930,1743568233229,-500.0,0.0002067,2]
[357003931,1743568233238,-500.0,0.0002067,2]
[357003932,1743568233247,-500.0,0.0002067,2]
[357003933,1743568233257,-500.0,0.0002067,2]
[357003934,1743568233266,-500.0,0.0002067,2]
[357003935,1743568233276,-500.0,0.0002067,2]
[357003936,1743568233285,-521.55537741,0.0002067,2]
[357003937,1743568233295,-500.0,0.0002067,2]
[357003938,1743568233304,-500.0,0.0002067,2]
[357003939,1743568233314,-500.0,0.0002067,2]
[357003940,1743568233323,-500.0,0.0002067,2]
[357003941,1743568233332,-500.0,0.0002067,2]
[357003942,1743568233342,-500.0,0.0002067,2]
[357003943,1743568233351,-500.0,0.0002067,2]
[357003944,1743568233360,-217.88543903,0.0002067,2]
[357003945,1743568233374,-282.11456097,0.0002067,2]
[357003946,1743568233384,-500.0,0.0002067,2]
[357003947,1743568233393,-500.0,0.0002067,2]
[357003948,1743568233402,-500.0,0.0002067,2]
[357003949,1743568233421,-500.0,0.0002067,2]
[357003950,1743568233432,-500.0,0.0002067,2]
[357003951,1743568233442,-513.89859802,0.0002067,2]
[357003952,1743568233452,-500.0,0.0002067,2]
[357003953,1743568233462,-500.0,0.0002067,2]
[357003954,1743568233472,-500.0,0.0002067,2]
[357003955,1743568233483,-578.0,0.0002067,2]
[357003956,1743568233492,-500.0,0.0002067,2]
[357003957,1743568233502,-500.0,0.0002067,2]
[357003958,1743568233512,-500.0,0.0002067,2]
[357003959,1743568233522,-500.0,0.0002067,2]
[357003960,1743568233531,-500.0,0.0002067,2]
[357003961,1743568233543,-500.0,0.0002067,2]
[357003962,1743568233552,-446.02279784,0.0002067,2]
[357003978,1743568237875,-500.0,0.00020667,2]
[357003979,1743568237885,-500.0,0.00020667,2]
[357003981,1743568237895,-500.0,0.00020667,2]
[357003983,1743568237906,-500.0,0.00020667,2]
[357003985,1743568237915,-500.0,0.00020667,2]
[357003987,1743568237924,-500.0,0.00020667,2]
[357003989,1743568237933,-500.0,0.00020667,2]
[357003990,1743568237943,-207.47940157,0.00020667,2]
[357003991,1743568237952,-500.0,0.00020667,2]
[357003992,1743568237962,-500.0,0.00020667,2]
[357003993,1743568237971,-500.0,0.00020667,2]
[357003994,1743568237980,-500.0,0.00020667,2]
[357003995,1743568237989,-500.0,0.00020667,2]
[357003996,1743568237998,-500.0,0.00020667,2]
[357003997,1743568238008,-500.0,0.00020667,2]
[357003998,1743568238017,-500.0,0.00020667,2]
[357003999,1743568238026,-257.59031189,0.00020668,2]
[357004000,1743568238038,-242.40968811,0.00020668,2]
[357004001,1743568238047,-500.0,0.00020669,2]
[357004002,1743568238057,-53.97720216,0.0002067,2]
[357004003,1743568238066,-500.0,0.0002067,2]
[357004004,1743568238076,-612.08291248,0.0002067,2]
[357004005,1743568238087,-500.0,0.0002067,2]
[357004006,1743568238097,-500.0,0.0002067,2]
[357004007,1743568238107,-500.0,0.0002067,2]
[357004008,1743568238116,-557.8671675,0.0002067,2]
[357004009,1743568238127,-500.0,0.0002067,2]
[357004010,1743568238136,-3631.13,0.0002067,2]
[357004011,1743568238145,-500.0,0.0002067,2]
[357004012,1743568238154,-500.0,0.0002067,2]
[357004013,1743568238163,-500.0,0.0002067,2]
[357004014,1743568238174,-500.0,0.0002067,2]
[357004015,1743568238183,-500.0,0.0002067,2]
[357004016,1743568238193,-500.0,0.0002067,2]
[357004017,1743568238202,-500.0,0.0002067,2]
[357004018,1743568238211,-500.0,0.0002067,2]
[357004019,1743568238220,-500.0,0.0002067,2]
[357004020,1743568238229,-500.0,0.0002067,2]
[357004021,1743568238238,-500.0,0.0002067,2]
[357004022,1743568238247,-500.0,0.0002067,2]
[357004023,1743568238257,-235.86877841,0.0002067,2]
[357004024,1743568238269,-264.13122159,0.0002067,2]
[357004025,1743568238279,-500.0,0.0002067,2]
[357004026,1743568238288,-500.0,0.0002067,2]
[357004027,1743568238298,-500.0,0.0002067,2]
[357004028,1743568238308,-500.0,0.0002067,2]
[357004029,1743568238317,-500.0,0.0002067,2]
[357004030,1743568238326,-500.0,0.0002067,2]
[357004031,1743568238335,-500.0,0.0002067,2]
[357004032,1743568238344,-524.38472289,0.0002067,2]
[357004033,1743568238354,-500.0,0.0002067,2]
[357004034,1743568238364,-174.14707575,0.0002067,2]
[357004035,1743568238375,-348.58282619,0.0002067,2]
[357004036,1743568238385,-500.0,0.0002067,2]
[357004037,1743568238394,-500.0,0.0002067,2]
[357004038,1743568238403,-500.0,0.0002067,2]
[357004039,1743568238412,-500.0,0.0002067,2]
[357004040,1743568238421,-500.0,0.0002067,2]
[357004041,1743568238430,-319.91809902,0.0002067,2]
[357004042,1743568238439,-500.0,0.0002067,2]
[357004043,1743568238449,-296.99859934,0.0002067,2]
[357004044,1743568238460,-203.00140066,0.0002067,2]
[357004045,1743568238470,-500.0,0.0002067,2]
[357004046,1743568238479,-500.0,0.0002067,2]
[357004047,1743568238488,-500.0,0.0002067,2]
[357004048,1743568238498,-500.0,0.0002067,2]
[357004050,1743568238507,-500.0,0.0002067,2]
[357004051,1743568238516,-500.0,0.0002067,2]
[357004052,1743568238525,-500.0,0.0002067,2]
[357004053,1743568238534,-528.36,0.0002067,2]
[357004054,1743568238543,-603.20679786,0.0002067,2]
[357004055,1743568238554,-500.0,0.00020671,2]
[357004056,1743568238563,-500.0,0.00020671,2]
[357004057,1743568238572,-465.1826732,0.00020671,2]
[357004058,1743568238582,-512.27899934,0.00020671,2]
[357004059,1743568238591,-158.84972985,0.00020671,2]
[357004060,1743568238729,-341.15027015,0.00020671,2]
[357004061,1743568238740,-500.0,0.00020671,2]
[357004062,1743568238749,-500.0,0.00020671,2]
[357004063,1743568238759,-500.0,0.00020671,2]
[357004064,1743568238767,-500.0,0.00020671,2]
[357004065,1743568238776,-500.0,0.00020671,2]
[357004066,1743568238786,-500.0,0.00020671,2]
[357004067,1743568238796,-273.04818288,0.00020671,2]
[357004068,1743568238805,-500.0,0.00020671,2]
[357004069,1743568238814,-500.0,0.00020671,2]
[357004070,1743568238823,-500.0,0.00020671,2]
[357004071,1743568238833,-500.0,0.00020671,2]
[357004072,1743568238843,-500.0,0.00020671,2]
[357004073,1743568238852,-500.0,0.00020671,2]
[357004074,1743568238862,-500.0,0.00020671,2]
[357004075,1743568238872,-500.0,0.00020671,2]
[357004076,1743568238881,-500.0,0.00020671,2]
[357004077,1743568238891,-500.0,0.00020671,2]
[357004078,1743568238900,-500.0,0.00020671,2]
[357004079,1743568238909,-500.0,0.00020671,2]
[357004080,1743568238918,-500.0,0.00020671,2]
[357004081,1743568238929,-500.0,0.00020671,2]
[357004082,1743568238938,-500.0,0.00020671,2]
[357004083,1743568238947,-500.0,0.00020671,2]
[357004084,1743568238956,-500.0,0.00020671,2]
[357004085,1743568238965,-500.0,0.00020671,2]
[357004086,1743568238974,-500.0,0.00020671,2]
[357004087,1743568238983,-500.0,0.00020671,2]
[357004088,1743568238992,-200.0,0.00020671,2]
[357004089,1743568239002,-506.25762146,0.00020671,2]
[357004090,1743568239012,-500.0,0.00020671,2]
[357004091,1743568239023,-500.0,0.00020671,2]
[357004092,1743568239033,-500.0,0.00020671,2]
[357004093,1743568239044,-500.0,0.00020671,2]
[357004094,1743568239053,-500.0,0.00020671,2]
[357004095,1743568239063,-500.0,0.00020671,2]
[357004096,1743568239072,-500.0,0.00020671,2]
[357004097,1743568239081,-500.0,0.00020671,2]
[357004098,1743568239091,-500.0,0.00020671,2]
[357004099,1743568239102,-500.0,0.00020671,2]
[357004100,1743568239112,-391.42195333,0.00020671,2]
[357004101,1743568239122,-500.0,0.00020671,2]
[357004102,1743568239131,-500.0,0.00020671,2]
[357004103,1743568239142,-514.51850904,0.00020671,2]
[357004104,1743568239151,-500.0,0.00020671,2]
[357004105,1743568239160,-500.0,0.00020671,2]
[357004106,1743568239172,-500.0,0.00020671,2]
[357004107,1743568239182,-500.0,0.00020671,2]
[357004108,1743568239192,-500.0,0.00020671,2]
[357004109,1743568239201,-500.0,0.00020671,2]
[357004110,1743568239211,-500.0,0.00020671,2]
[357004111,1743568239219,-358.18185411,0.00020671,2]
[357004112,1743568239232,-197.87590904,0.00020671,2]
[357004113,1743568239241,-500.0,0.00020671,2]
[357004114,1743568239250,-500.0,0.00020671,2]
[357004115,1743568239260,-557.51583877,0.00020671,2]
[357004116,1743568239269,-500.0,0.00020671,2]
[357004117,1743568239278,-500.0,0.00020671,2]
[357004118,1743568239287,-500.0,0.00020671,2]
[357004119,1743568239296,-500.0,0.00020671,2]
[357004120,1743568239305,-290.7711242,0.00020671,2]
[357004121,1743568239318,-500.0,0.00020671,2]
[357004122,1743568239327,-628.08029446,0.00020671,2]
[357004123,1743568239336,-500.0,0.00020671,2]
[357004124,1743568239345,-500.0,0.00020671,2]
[357004125,1743568239354,-500.0,0.00020671,2]
[357004126,1743568239364,-500.0,0.00020671,2]
[357004127,1743568239373,-500.0,0.00020671,2]
[357004128,1743568239382,-500.0,0.00020671,2]
[357004129,1743568239391,-500.0,0.00020671,2]
[357004130,1743568239401,-500.0,0.00020671,2]
[357004131,1743568239410,-543.83115562,0.00020671,2]
[357004132,1743568239419,-612.56065452,0.00020671,2]
[357004133,1743568239428,-500.0,0.00020671,2]
[357004134,1743568239437,-500.0,0.00020671,2]
[357004135,1743568239446,-504.17249544,0.00020671,2]
[357004136,1743568239455,-512.67281473,0.00020671,2]
[357004137,1743568239466,-500.0,0.00020671,2]
[357004138,1743568239475,-500.0,0.00020671,2]
[357004139,1743568239484,-500.0,0.00020671,2]
[357004140,1743568239494,-543.57002854,0.00020671,2]
[357004141,1743568239503,-500.0,0.00020671,2]
[357004143,1743568239513,-500.0,0.00020671,2]
[357004144,1743568239522,-500.0,0.00020671,2]
[357004145,1743568239531,-525.32168814,0.00020671,2]
[357004146,1743568239540,-500.0,0.00020671,2]
[357004147,1743568239551,-500.0,0.00020671,2]
[357004148,1743568239561,-500.0,0.00020671,2]
[357004149,1743568239571,-480.78458316,0.00020671,2]
[357004151,1743568239583,-19.21541684,0.00020671,2]
[357004152,1743568239593,-500.0,0.00020671,2]
[357004153,1743568239602,-115.68773115,0.00020671,2]
[357004164,1743568243144,-500.0,0.00020668,2]
[357004165,1743568243154,-384.31226885,0.00020671,2]
[357004166,1743568243164,-500.0,0.00020671,2]
[357004167,1743568243175,-471.39722945,0.00020671,2]
[357004168,1743568243185,-144.2905017,0.00020671,2]
[357004175,1743568246095,-324.65567513,0.00020667,2]
[357004176,1743568246110,-200.13086582,0.00020667,2]
[357004177,1743568246120,-500.0,0.0002067,2]
[357004178,1743568246130,-355.7094983,0.00020671,2]
[357004179,1743568246140,-500.0,0.00020671,2]
[357004180,1743568246149,-190.45713921,0.00020671,2]
[357004181,1743568246158,-104.59838672,0.00020671,2]
[357004230,1743568787434,173.772182,0.00013699,2]
[357004258,1743569432281,-160.0,0.00019988,2]
[357004259,1743569432291,-1500.000001,0.0002,2]
[357004260,1743569432300,-2000.0,0.000205,2]
[357004261,1743569432309,-160.0,0.0002051,2]
[357004262,1743569432318,-1171.27317468,0.00020531,2]
[357004263,1743569432328,-500.0,0.0002057,2]
[357004264,1743569432337,-356.38660017,0.0002057,2]
[357004268,1743569432472,-300.0,0.0002057,2]
[357004269,1743569432494,-11793.40844183,0.00020571,2]
[357004270,1743569432503,-12458.93820146,0.00020612,2]
[357004271,1743569432514,-1042.94,0.00020619,2]
[357004272,1743569432524,-500.0,0.00020619,2]
[357004273,1743569432533,-899.77,0.00020619,2]
[357004274,1743569432543,-500.0,0.00020619,2]
[357004275,1743569432553,-501.94,0.00020619,2]
[357004276,1743569432573,-500.0,0.00020619,2]
[357004277,1743569432584,-11750.98,0.00020627,2]
[357004278,1743569432595,-500.0,0.00020627,2]
[357004279,1743569432605,-500.0,0.00020627,2]
[357004280,1743569432614,-500.0,0.00020627,2]
[357004281,1743569432624,-5271.03,0.00020627,2]
[357004282,1743569432634,-500.0,0.00020627,2]
[357004283,1743569432644,-500.0,0.00020627,2]
[357004284,1743569432655,-285.61334666,0.0002063,2]
[357004285,1743569432664,-500.0,0.00020631,2]
[357004286,1743569432675,-500.0,0.00020631,2]
[357004287,1743569432685,-500.0,0.00020631,2]
[357004288,1743569432694,-500.0,0.00020631,2]
[357004289,1743569432704,-500.0,0.00020631,2]
[357004290,1743569432713,-500.0,0.00020631,2]
[357004291,1743569432723,-500.0,0.00020631,2]
[357004292,1743569432733,-500.0,0.00020631,2]
[357004293,1743569432742,-500.0,0.00020631,2]
[357004294,1743569432752,-500.0,0.00020631,2]
[357004295,1743569432761,-500.0,0.00020631,2]
[357004296,1743569432771,-500.0,0.00020631,2]
[357004297,1743569432780,-500.0,0.00020631,2]
[357004298,1743569432790,-500.0,0.00020631,2]
[357004299,1743569432799,-500.0,0.00020631,2]
[357004300,1743569432809,-263.24926382,0.00020631,2]
[357004301,1743569432818,-500.0,0.00020631,2]
[357004302,1743569432828,-500.0,0.00020631,2]
[357004303,1743569432837,-500.0,0.00020631,2]
[357004304,1743569432846,-500.0,0.00020631,2]
[357004305,1743569432856,-500.0,0.00020631,2]
[357004306,1743569432865,-500.0,0.00020631,2]
[357004307,1743569432874,-500.0,0.00020631,2]
[357004308,1743569432884,-200.0,0.00020631,2]
[357004309,1743569432893,-500.0,0.00020631,2]
[357004310,1743569432903,-500.0,0.00020631,2]
[357004311,1743569432912,-500.0,0.00020631,2]
[357004312,1743569432921,-500.0,0.00020631,2]
[357004313,1743569432931,-580.25520536,0.00020631,2]
[357004314,1743569432940,-500.0,0.00020631,2]
[357004315,1743569432950,-500.0,0.00020631,2]
[357004316,1743569432960,-417.36167809,0.00020631,2]
[357004317,1743569432969,-500.0,0.00020631,2]
[357004318,1743569432979,-500.0,0.00020631,2]
[357004319,1743569432989,-500.0,0.00020631,2]
[357004320,1743569433000,-500.0,0.00020631,2]